[Event "Titled Tuesday Blitz October 18 Late 2022"]
[White "Pinheiro, Iung Alicio de O."]
[Black "Manukian, Artak"]
[WhiteFideId "2104350"]
[BlackFideId "13301373"]
[WhiteElo "2624"]
[BlackElo "2474"]
[Result "1-0"]
[Round "05"]
[TimeControl "180+1"]
[Date "2022.10.19"]
[WhiteClock "0:00:09"]
[BlackClock "0:00:03"]

1. e4 {[%clk 0:02:50]}  c6 {[%clk 0:02:57]} 2. Nf3 {[%clk 0:02:46]}  d5 {[%clk 0:02:58]} 3. Nc3 {[%clk 0:02:43]}  dxe4 {[%clk 0:02:57]} 4. Nxe4 {[%clk 0:02:43]}  Nf6 {[%clk 0:02:58]} 5. Qe2 {[%clk 0:02:42]}  Nxe4 {[%clk 0:02:55]} 6. Qxe4 {[%clk 0:02:43]}  Qa5 {[%clk 0:02:55]} 7. Bc4 {[%clk 0:02:40]}  Qf5 {[%clk 0:02:50]} 8. Qh4 {[%clk 0:02:34]}  Be6 {[%clk 0:02:47]} 9. b3 {[%clk 0:01:40]}  Bxc4 {[%clk 0:02:39]} 10. Qxc4 {[%clk 0:01:41]}  Nd7 {[%clk 0:02:25]} 11. Bb2 {[%clk 0:01:34]}  Qd5 {[%clk 0:02:24]} 12. Qe2 {[%clk 0:01:26]}  O-O-O {[%clk 0:02:18]} 13. O-O-O {[%clk 0:01:25]}  f6 {[%clk 0:02:05]} 14. d4 {[%clk 0:01:23]}  h5 {[%clk 0:01:55]} 15. h4 {[%clk 0:01:10]}  g6 {[%clk 0:01:46]} 16. Kb1 {[%clk 0:01:09]}  Bh6 {[%clk 0:01:45]} 17. Qxe7 {[%clk 0:01:03]}  Rhe8 {[%clk 0:01:40]} 18. Qh7 {[%clk 0:00:59]}  Bf8 {[%clk 0:01:22]} 19. Qxg6 {[%clk 0:00:57]}  Re2 {[%clk 0:01:18]} 20. Rhf1 {[%clk 0:00:57]}  a5 {[%clk 0:01:14]} 21. a4 {[%clk 0:00:54]}  Bb4 {[%clk 0:01:10]} 22. Qd3 {[%clk 0:00:54]}  Rde8 {[%clk 0:01:07]} 23. Bc1 {[%clk 0:00:50]}  R2e7 {[%clk 0:00:43]} 24. Bd2 {[%clk 0:00:41]}  Bxd2 {[%clk 0:00:36]} 25. Nxd2 {[%clk 0:00:42]}  b5 {[%clk 0:00:30]} 26. axb5 {[%clk 0:00:40]}  cxb5 {[%clk 0:00:31]} 27. Kb2 {[%clk 0:00:40]}  Nb6 {[%clk 0:00:23]} 28. Qc3+ {[%clk 0:00:36]}  Kb7 {[%clk 0:00:19]} 29. Nf3 {[%clk 0:00:24]}  a4 {[%clk 0:00:15]} 30. Qc5 {[%clk 0:00:22]}  axb3 {[%clk 0:00:13]} 31. Qxd5+ {[%clk 0:00:22]}  Nxd5 {[%clk 0:00:13]} 32. Kxb3 {[%clk 0:00:23]}  Rc8 {[%clk 0:00:10]} 33. Rd3 {[%clk 0:00:22]}  Rec7 {[%clk 0:00:09]} 34. Rc1 {[%clk 0:00:21]}  Nf4 {[%clk 0:00:09]} 35. Re3 {[%clk 0:00:16]}  Nxg2 {[%clk 0:00:08]} 36. Re6 {[%clk 0:00:14]}  Rc6 {[%clk 0:00:06]} 37. Rxc6 {[%clk 0:00:12]}  Rxc6 {[%clk 0:00:07]} 38. c3 {[%clk 0:00:12]}  Nf4 {[%clk 0:00:07]} 39. Nd2 {[%clk 0:00:11]}  Nd3 {[%clk 0:00:07]} 40. Ra1 {[%clk 0:00:11]}  Nxf2 {[%clk 0:00:06]} 41. Rf1 {[%clk 0:00:10]}  Ng4 {[%clk 0:00:06]} 42. Ne4 {[%clk 0:00:10]}  Kc7 {[%clk 0:00:03]} 43. Nc5 {[%clk 0:00:09]} 1-0


[Site "https://www.chess.com"]

[Event "Titled Tuesday Blitz October 18 Late 2022"]
[White "Poliakova, Varvara"]
[Black "Goryachkina, Aleksandra"]
[WhiteFideId "13518313"]
[BlackFideId "4147103"]
[WhiteElo "2499"]
[BlackElo "2675"]
[Result "0-1"]
[Round "05"]
[TimeControl "180+1"]
[Date "2022.10.19"]
[WhiteClock "0:00:05"]
[BlackClock "0:00:08"]

1. e4 {[%clk 0:03:00]}  c5 {[%clk 0:02:59]} 2. Nf3 {[%clk 0:03:00]}  e6 {[%clk 0:02:59]} 3. d4 {[%clk 0:03:00]}  cxd4 {[%clk 0:03:00]} 4. Nxd4 {[%clk 0:03:01]}  Nf6 {[%clk 0:03:00]} 5. Nc3 {[%clk 0:03:01]}  Nc6 {[%clk 0:03:00]} 6. Ndb5 {[%clk 0:02:59]}  d6 {[%clk 0:03:00]} 7. Bf4 {[%clk 0:02:56]}  e5 {[%clk 0:03:00]} 8. Bg5 {[%clk 0:02:56]}  a6 {[%clk 0:03:00]} 9. Na3 {[%clk 0:02:56]}  b5 {[%clk 0:02:58]} 10. Nd5 {[%clk 0:02:51]}  Be7 {[%clk 0:02:58]} 11. Bxf6 {[%clk 0:02:51]}  Bxf6 {[%clk 0:02:58]} 12. c3 {[%clk 0:02:51]}  Rb8 {[%clk 0:02:53]} 13. Nc2 {[%clk 0:02:49]}  Bg5 {[%clk 0:02:50]} 14. g3 {[%clk 0:02:46]}  O-O {[%clk 0:02:49]} 15. Bg2 {[%clk 0:02:43]}  Be6 {[%clk 0:02:47]} 16. O-O {[%clk 0:02:38]}  Qd7 {[%clk 0:02:36]} 17. h4 {[%clk 0:02:23]}  Bd8 {[%clk 0:02:33]} 18. Kh2 {[%clk 0:02:21]}  a5 {[%clk 0:02:17]} 19. a3 {[%clk 0:02:13]}  Kh8 {[%clk 0:01:59]} 20. Nce3 {[%clk 0:02:08]}  b4 {[%clk 0:01:48]} 21. axb4 {[%clk 0:01:59]}  axb4 {[%clk 0:01:48]} 22. Qd3 {[%clk 0:01:56]}  bxc3 {[%clk 0:01:34]} 23. bxc3 {[%clk 0:01:56]}  Bb6 {[%clk 0:01:26]} 24. Rfd1 {[%clk 0:01:54]}  Bc5 {[%clk 0:01:25]} 25. Rd2 {[%clk 0:01:42]}  Ne7 {[%clk 0:01:14]} 26. Nxe7 {[%clk 0:01:39]}  Qxe7 {[%clk 0:01:14]} 27. Nd5 {[%clk 0:01:38]}  Qd7 {[%clk 0:01:08]} 28. Ne3 {[%clk 0:01:31]}  g6 {[%clk 0:01:01]} 29. Nc4 {[%clk 0:01:10]}  Rbd8 {[%clk 0:00:54]} 30. Rad1 {[%clk 0:01:09]}  Qe7 {[%clk 0:00:46]} 31. Ne3 {[%clk 0:01:08]}  f5 {[%clk 0:00:43]} 32. exf5 {[%clk 0:00:52]}  gxf5 {[%clk 0:00:43]} 33. Nd5 {[%clk 0:00:52]}  Qf7 {[%clk 0:00:42]} 34. Bh3 {[%clk 0:00:40]}  f4 {[%clk 0:00:29]} 35. Bxe6 {[%clk 0:00:38]}  Qxe6 {[%clk 0:00:30]} 36. gxf4 {[%clk 0:00:30]}  Rf5 {[%clk 0:00:23]} 37. Qh3 {[%clk 0:00:27]}  Rdf8 {[%clk 0:00:20]} 38. Ne3 {[%clk 0:00:27]}  Bxe3 {[%clk 0:00:18]} 39. fxe3 {[%clk 0:00:28]}  exf4 {[%clk 0:00:18]} 40. exf4 {[%clk 0:00:26]}  Qe4 {[%clk 0:00:14]} 41. Rd4 {[%clk 0:00:24]}  Qe2+ {[%clk 0:00:14]} 42. Qg2 {[%clk 0:00:24]}  Qh5 {[%clk 0:00:14]} 43. Qg3 {[%clk 0:00:20]}  Rg8 {[%clk 0:00:10]} 44. Qe1 {[%clk 0:00:16]}  Qf3 {[%clk 0:00:09]} 45. R1d2 {[%clk 0:00:12]}  Rxf4 {[%clk 0:00:08]} 46. Rxf4 {[%clk 0:00:12]}  Qxf4+ {[%clk 0:00:08]} 47. Kh1 {[%clk 0:00:09]}  Qg4 {[%clk 0:00:08]} 48. Qf2 {[%clk 0:00:06]}  Qh3+ {[%clk 0:00:08]} 49. Qh2 {[%clk 0:00:05]}  Qf1+ {[%clk 0:00:08]} 0-1


[Site "https://www.chess.com"]

[Event "Titled Tuesday Blitz October 18 Late 2022"]
[White "Prydun, Andriy"]
[Black "Jaferian, Koosha"]
[WhiteFideId "14145898"]
[BlackFideId "12507440"]
[WhiteElo "2358"]
[BlackElo "2703"]
[Result "0-1"]
[Round "05"]
[TimeControl "180+1"]
[Date "2022.10.19"]
[WhiteClock "0:00:03"]
[BlackClock "0:00:20"]

1. e4 {[%clk 0:03:00]}  c6 {[%clk 0:03:00]} 2. d4 {[%clk 0:03:00]}  d5 {[%clk 0:03:01]} 3. e5 {[%clk 0:03:01]}  Bf5 {[%clk 0:03:01]} 4. Bd3 {[%clk 0:03:01]}  Bxd3 {[%clk 0:03:01]} 5. cxd3 {[%clk 0:03:02]}  e6 {[%clk 0:03:02]} 6. Nc3 {[%clk 0:03:01]}  Ne7 {[%clk 0:02:59]} 7. h4 {[%clk 0:02:57]}  h5 {[%clk 0:02:57]} 8. Nf3 {[%clk 0:02:55]}  Nf5 {[%clk 0:02:55]} 9. g3 {[%clk 0:02:55]}  Nd7 {[%clk 0:02:53]} 10. Ne2 {[%clk 0:02:54]}  Bb4+ {[%clk 0:02:52]} 11. Kf1 {[%clk 0:02:53]}  O-O {[%clk 0:02:43]} 12. Kg2 {[%clk 0:02:52]}  Be7 {[%clk 0:02:32]} 13. Bg5 {[%clk 0:02:50]}  c5 {[%clk 0:02:28]} 14. Rb1 {[%clk 0:02:41]}  cxd4 {[%clk 0:02:26]} 15. Qd2 {[%clk 0:02:39]}  Qb8 {[%clk 0:02:06]} 16. Bxe7 {[%clk 0:02:36]}  Nxe7 {[%clk 0:02:07]} 17. Qg5 {[%clk 0:02:36]}  Nf5 {[%clk 0:02:04]} 18. Qxh5 {[%clk 0:02:32]}  Nxe5 {[%clk 0:01:57]} 19. Nxe5 {[%clk 0:01:25]}  Qxe5 {[%clk 0:01:57]} 20. Qf3 {[%clk 0:01:26]}  Rac8 {[%clk 0:01:48]} 21. Rbc1 {[%clk 0:01:20]}  Qf6 {[%clk 0:01:32]} 22. Nf4 {[%clk 0:01:14]}  Rc6 {[%clk 0:01:14]} 23. Nh5 {[%clk 0:00:56]}  Qg6 {[%clk 0:01:02]} 24. Nf4 {[%clk 0:00:50]}  Qf6 {[%clk 0:01:02]} 25. Nh5 {[%clk 0:00:50]}  Qe5 {[%clk 0:00:52]} 26. Rce1 {[%clk 0:00:49]}  Qc7 {[%clk 0:00:49]} 27. g4 {[%clk 0:00:43]}  Nh6 {[%clk 0:00:49]} 28. g5 {[%clk 0:00:33]}  Nf5 {[%clk 0:00:49]} 29. Qg4 {[%clk 0:00:32]}  Rc2 {[%clk 0:00:45]} 30. Nf6+ {[%clk 0:00:29]}  gxf6 {[%clk 0:00:32]} 31. gxf6+ {[%clk 0:00:30]}  Kh7 {[%clk 0:00:33]} 32. Qh5+ {[%clk 0:00:10]}  Nh6 {[%clk 0:00:33]} 33. Re5 {[%clk 0:00:08]}  Rxf2+ {[%clk 0:00:25]} 34. Kxf2 {[%clk 0:00:08]}  Qxe5 {[%clk 0:00:25]} 35. Qg5 {[%clk 0:00:04]}  Qe3+ {[%clk 0:00:20]} 36. Qxe3 {[%clk 0:00:04]}  dxe3+ {[%clk 0:00:21]} 37. Kxe3 {[%clk 0:00:03]}  Nf5+ {[%clk 0:00:22]} 38. Kf4 {[%clk 0:00:03]}  Rg8 {[%clk 0:00:20]} 0-1


[Site "https://www.chess.com"]

[Event "Titled Tuesday Blitz October 18 Late 2022"]
[White "Quispe Santacruz, Javier"]
[Black "Castella Garcia, Fausto"]
[WhiteFideId "3800920"]
[BlackFideId "3501922"]
[WhiteElo "1930"]
[BlackElo "2246"]
[Result "0-1"]
[Round "05"]
[TimeControl "180+1"]
[Date "2022.10.19"]
[WhiteClock "0:00:02"]
[BlackClock "0:00:12"]

1. e4 {[%clk 0:03:00]}  c5 {[%clk 0:02:56]} 2. Nf3 {[%clk 0:03:00]}  d6 {[%clk 0:02:55]} 3. Bb5+ {[%clk 0:02:58]}  Bd7 {[%clk 0:02:54]} 4. Bxd7+ {[%clk 0:02:57]}  Nxd7 {[%clk 0:02:52]} 5. c4 {[%clk 0:02:54]}  Ngf6 {[%clk 0:02:51]} 6. Nc3 {[%clk 0:02:51]}  Ne5 {[%clk 0:02:49]} 7. b3 {[%clk 0:02:32]}  Nd3+ {[%clk 0:02:47]} 8. Ke2 {[%clk 0:02:27]}  Nf4+ {[%clk 0:02:40]} 9. Kf1 {[%clk 0:02:24]}  e5 {[%clk 0:02:33]} 10. g3 {[%clk 0:02:24]}  Nd3 {[%clk 0:02:16]} 11. Qe2 {[%clk 0:02:08]}  Nxc1 {[%clk 0:02:12]} 12. Rxc1 {[%clk 0:02:09]}  g6 {[%clk 0:02:07]} 13. Kg2 {[%clk 0:02:09]}  Bg7 {[%clk 0:01:41]} 14. h4 {[%clk 0:02:06]}  O-O {[%clk 0:01:26]} 15. Ng5 {[%clk 0:02:04]}  h6 {[%clk 0:01:25]} 16. Nf3 {[%clk 0:01:55]}  Qd7 {[%clk 0:01:23]} 17. Nh2 {[%clk 0:01:53]}  a6 {[%clk 0:01:17]} 18. d3 {[%clk 0:01:52]}  b5 {[%clk 0:01:16]} 19. Nd5 {[%clk 0:01:47]}  Nxd5 {[%clk 0:01:14]} 20. cxd5 {[%clk 0:01:42]}  f5 {[%clk 0:01:14]} 21. h5 {[%clk 0:01:38]}  g5 {[%clk 0:01:09]} 22. Nf1 {[%clk 0:01:04]}  f4 {[%clk 0:01:04]} 23. f3 {[%clk 0:00:58]}  g4 {[%clk 0:00:59]} 24. Nd2 {[%clk 0:00:50]}  gxf3+ {[%clk 0:00:51]} 25. Qxf3 {[%clk 0:00:47]}  fxg3 {[%clk 0:00:48]} 26. Qxg3 {[%clk 0:00:47]}  Rf4 {[%clk 0:00:46]} 27. Rh4 {[%clk 0:00:45]}  Raf8 {[%clk 0:00:44]} 28. Rxf4 {[%clk 0:00:35]}  Rxf4 {[%clk 0:00:42]} 29. Kh2 {[%clk 0:00:29]}  Rg4 {[%clk 0:00:38]} 30. Qf3 {[%clk 0:00:25]}  Kh8 {[%clk 0:00:27]} 31. Nf1 {[%clk 0:00:24]}  Rf4 {[%clk 0:00:24]} 32. Qg3 {[%clk 0:00:18]}  Bf6 {[%clk 0:00:24]} 33. Ne3 {[%clk 0:00:16]}  Bh4 {[%clk 0:00:19]} 34. Qg6 {[%clk 0:00:11]}  Rf2+ {[%clk 0:00:19]} 35. Kg1 {[%clk 0:00:11]}  Rf6 {[%clk 0:00:14]} 36. Qg2 {[%clk 0:00:07]}  Bf2+ {[%clk 0:00:13]} 37. Kh1 {[%clk 0:00:03]}  Bxe3 {[%clk 0:00:12]} 38. Rg1 {[%clk 0:00:03]}  Bxg1 {[%clk 0:00:12]} 39. Qxg1 {[%clk 0:00:03]}  Qh3+ {[%clk 0:00:12]} 40. Qh2 {[%clk 0:00:02]}  Rf1# {[%clk 0:00:12]} 0-1


[Site "https://www.chess.com"]

[Event "Titled Tuesday Blitz October 18 Late 2022"]
[White "Radovic, Janko"]
[Black "Wiebe, Isaac"]
[WhiteFideId "911518"]
[BlackFideId "2623862"]
[WhiteElo "2623"]
[BlackElo "2253"]
[Result "1-0"]
[Round "05"]
[TimeControl "180+1"]
[Date "2022.10.19"]
[WhiteClock "0:01:44"]
[BlackClock "0:00:37"]

1. Nf3 {[%clk 0:03:00]}  Nf6 {[%clk 0:02:57]} 2. c4 {[%clk 0:03:00]}  e6 {[%clk 0:02:56]} 3. g3 {[%clk 0:03:01]}  d5 {[%clk 0:02:55]} 4. Bg2 {[%clk 0:03:01]}  Be7 {[%clk 0:02:55]} 5. O-O {[%clk 0:03:02]}  O-O {[%clk 0:02:54]} 6. d4 {[%clk 0:03:01]}  dxc4 {[%clk 0:02:48]} 7. Ne5 {[%clk 0:02:48]}  Nc6 {[%clk 0:02:47]} 8. Bxc6 {[%clk 0:02:43]}  bxc6 {[%clk 0:02:47]} 9. Nxc6 {[%clk 0:02:44]}  Qe8 {[%clk 0:02:40]} 10. Nxe7+ {[%clk 0:02:45]}  Qxe7 {[%clk 0:02:40]} 11. Qa4 {[%clk 0:02:45]}  c5 {[%clk 0:02:31]} 12. dxc5 {[%clk 0:02:31]}  Qxc5 {[%clk 0:02:30]} 13. Be3 {[%clk 0:02:27]}  Qh5 {[%clk 0:02:28]} 14. Qxc4 {[%clk 0:02:22]}  Ng4 {[%clk 0:02:23]} 15. h4 {[%clk 0:02:18]}  Nxe3 {[%clk 0:02:23]} 16. fxe3 {[%clk 0:02:17]}  Bb7 {[%clk 0:02:21]} 17. Nc3 {[%clk 0:02:17]}  e5 {[%clk 0:02:16]} 18. Qd3 {[%clk 0:02:04]}  Qg4 {[%clk 0:01:17]} 19. e4 {[%clk 0:02:03]}  Rad8 {[%clk 0:01:03]} 20. Qf3 {[%clk 0:02:03]}  Qxf3 {[%clk 0:01:00]} 21. exf3 {[%clk 0:02:02]}  Rd2 {[%clk 0:00:59]} 22. Rf2 {[%clk 0:02:02]}  Rfd8 {[%clk 0:00:59]} 23. Rxd2 {[%clk 0:01:59]}  Rxd2 {[%clk 0:01:00]} 24. Rd1 {[%clk 0:01:59]}  Rxd1+ {[%clk 0:01:00]} 25. Nxd1 {[%clk 0:02:00]}  f5 {[%clk 0:01:01]} 26. Nc3 {[%clk 0:01:58]}  fxe4 {[%clk 0:01:01]} 27. Nxe4 {[%clk 0:01:58]}  Bd5 {[%clk 0:00:59]} 28. a3 {[%clk 0:01:57]}  Kf7 {[%clk 0:00:52]} 29. Kf2 {[%clk 0:01:57]}  Ke6 {[%clk 0:00:52]} 30. Ng5+ {[%clk 0:01:57]}  Kf5 {[%clk 0:00:50]} 31. Nxh7 {[%clk 0:01:57]}  e4 {[%clk 0:00:50]} 32. fxe4+ {[%clk 0:01:56]}  Bxe4 {[%clk 0:00:49]} 33. Ng5 {[%clk 0:01:56]}  Bc2 {[%clk 0:00:48]} 34. Nf7 {[%clk 0:01:51]}  Kg4 {[%clk 0:00:45]} 35. Nd6 {[%clk 0:01:49]}  Bd3 {[%clk 0:00:43]} 36. b4 {[%clk 0:01:46]}  a6 {[%clk 0:00:42]} 37. a4 {[%clk 0:01:45]}  g5 {[%clk 0:00:39]} 38. hxg5 {[%clk 0:01:43]}  Kxg5 {[%clk 0:00:40]} 39. b5 {[%clk 0:01:44]}  axb5 {[%clk 0:00:37]} 40. axb5 {[%clk 0:01:44]} 1-0


[Site "https://www.chess.com"]

[Event "Titled Tuesday Blitz October 18 Late 2022"]
[White "Rangel, Daniel"]
[Black "Sernecki, Franciszek"]
[WhiteFideId "2124475"]
[BlackFideId "1169297"]
[WhiteElo "2225"]
[BlackElo "2209"]
[Result "1-0"]
[Round "05"]
[TimeControl "180+1"]
[Date "2022.10.19"]
[WhiteClock "0:00:08"]
[BlackClock "0:00:11"]

1. c4 {[%clk 0:03:00]}  c5 {[%clk 0:02:55]} 2. g3 {[%clk 0:03:01]}  Nc6 {[%clk 0:02:55]} 3. Bg2 {[%clk 0:02:53]}  g6 {[%clk 0:02:55]} 4. Nf3 {[%clk 0:02:52]}  Bg7 {[%clk 0:02:56]} 5. O-O {[%clk 0:02:52]}  e5 {[%clk 0:02:56]} 6. d3 {[%clk 0:02:50]}  Nge7 {[%clk 0:02:56]} 7. Nc3 {[%clk 0:02:51]}  d6 {[%clk 0:02:55]} 8. a3 {[%clk 0:02:51]}  O-O {[%clk 0:02:55]} 9. Rb1 {[%clk 0:02:51]}  a5 {[%clk 0:02:56]} 10. Nd5 {[%clk 0:02:51]}  Rb8 {[%clk 0:02:48]} 11. Bd2 {[%clk 0:02:44]}  b5 {[%clk 0:02:47]} 12. Nxe7+ {[%clk 0:02:41]}  Qxe7 {[%clk 0:02:27]} 13. cxb5 {[%clk 0:02:37]}  Rxb5 {[%clk 0:02:28]} 14. Ne1 {[%clk 0:02:25]}  Nd4 {[%clk 0:02:02]} 15. a4 {[%clk 0:02:18]}  Rb8 {[%clk 0:01:57]} 16. Bxa5 {[%clk 0:02:17]}  Be6 {[%clk 0:01:57]} 17. Bc3 {[%clk 0:02:00]}  Bb3 {[%clk 0:01:54]} 18. Qd2 {[%clk 0:01:52]}  Bxa4 {[%clk 0:01:53]} 19. e3 {[%clk 0:01:51]}  Nb3 {[%clk 0:01:51]} 20. Qe2 {[%clk 0:01:51]}  Qd7 {[%clk 0:01:49]} 21. Bd5 {[%clk 0:01:41]}  Bc6 {[%clk 0:01:47]} 22. Bxc6 {[%clk 0:01:40]}  Qxc6 {[%clk 0:01:48]} 23. e4 {[%clk 0:01:39]}  f5 {[%clk 0:01:45]} 24. Nc2 {[%clk 0:01:37]}  f4 {[%clk 0:01:45]} 25. f3 {[%clk 0:01:34]}  h5 {[%clk 0:01:43]} 26. Na3 {[%clk 0:01:33]}  Bh6 {[%clk 0:01:36]} 27. Nc4 {[%clk 0:01:31]}  Rf7 {[%clk 0:01:34]} 28. Kg2 {[%clk 0:01:19]}  Rbf8 {[%clk 0:01:33]} 29. Qc2 {[%clk 0:01:18]}  Nd4 {[%clk 0:01:28]} 30. Bxd4 {[%clk 0:01:17]}  exd4 {[%clk 0:01:29]} 31. b4 {[%clk 0:01:08]}  d5 {[%clk 0:01:23]} 32. Ne5 {[%clk 0:01:06]}  Qe6 {[%clk 0:01:14]} 33. Nxf7 {[%clk 0:01:06]}  Rxf7 {[%clk 0:01:15]} 34. bxc5 {[%clk 0:01:02]}  dxe4 {[%clk 0:01:16]} 35. fxe4 {[%clk 0:00:58]}  Qg4 {[%clk 0:01:14]} 36. Rf3 {[%clk 0:00:46]}  fxg3 {[%clk 0:01:00]} 37. Rxg3 {[%clk 0:00:16]}  Qf4 {[%clk 0:00:59]} 38. Qe2 {[%clk 0:00:14]}  h4 {[%clk 0:00:50]} 39. Rxg6+ {[%clk 0:00:13]}  Kh7 {[%clk 0:00:51]} 40. Rg4 {[%clk 0:00:13]}  Qe5 {[%clk 0:00:41]} 41. h3 {[%clk 0:00:13]}  Qxc5 {[%clk 0:00:41]} 42. Rf1 {[%clk 0:00:12]}  Rb7 {[%clk 0:00:21]} 43. Qf3 {[%clk 0:00:10]}  Qb6 {[%clk 0:00:12]} 44. Qf5+ {[%clk 0:00:09]}  Kh8 {[%clk 0:00:11]} 45. Qc8+ {[%clk 0:00:08]}  Kh7 {[%clk 0:00:11]} 46. Qg8# {[%clk 0:00:08]} 1-0


[Site "https://www.chess.com"]

[Event "Titled Tuesday Blitz October 18 Late 2022"]
[White "Richter, Paul"]
[Black "Bordi, Kevin"]
[WhiteFideId "2046350"]
[BlackFideId "621862"]
[WhiteElo "2588"]
[BlackElo "2780"]
[Result "0-1"]
[Round "05"]
[TimeControl "180+1"]
[Date "2022.10.18"]
[WhiteClock "0:00:07"]
[BlackClock "0:00:49"]

1. e4 {[%clk 0:03:00]}  d5 {[%clk 0:03:00]} 2. exd5 {[%clk 0:03:00]}  Qxd5 {[%clk 0:03:01]} 3. Nc3 {[%clk 0:02:59]}  Qa5 {[%clk 0:03:01]} 4. Bc4 {[%clk 0:02:59]}  Nf6 {[%clk 0:03:01]} 5. d3 {[%clk 0:03:00]}  c6 {[%clk 0:03:01]} 6. Bd2 {[%clk 0:03:00]}  Qc7 {[%clk 0:03:00]} 7. Qe2 {[%clk 0:02:59]}  b5 {[%clk 0:03:00]} 8. Bb3 {[%clk 0:02:59]}  Nbd7 {[%clk 0:03:00]} 9. d4 {[%clk 0:02:51]}  e6 {[%clk 0:02:58]} 10. Nf3 {[%clk 0:02:44]}  Bd6 {[%clk 0:02:58]} 11. d5 {[%clk 0:02:22]}  cxd5 {[%clk 0:02:58]} 12. Nxb5 {[%clk 0:02:22]}  Qb8 {[%clk 0:02:58]} 13. Nxd6+ {[%clk 0:02:22]}  Qxd6 {[%clk 0:02:58]} 14. O-O {[%clk 0:02:14]}  Ba6 {[%clk 0:02:58]} 15. c4 {[%clk 0:02:12]}  O-O {[%clk 0:02:58]} 16. Rfd1 {[%clk 0:02:00]}  Rfc8 {[%clk 0:02:56]} 17. Rac1 {[%clk 0:01:56]}  Nc5 {[%clk 0:02:49]} 18. Bb4 {[%clk 0:01:52]}  Qb6 {[%clk 0:02:49]} 19. Bxc5 {[%clk 0:01:49]}  Rxc5 {[%clk 0:02:49]} 20. Ne5 {[%clk 0:01:34]}  dxc4 {[%clk 0:01:48]} 21. Bxc4 {[%clk 0:01:28]}  Qc7 {[%clk 0:01:33]} 22. Qd2 {[%clk 0:00:45]}  Bb7 {[%clk 0:01:10]} 23. f4 {[%clk 0:00:17]}  h6 {[%clk 0:01:08]} 24. Bf1 {[%clk 0:00:15]}  Rc8 {[%clk 0:01:05]} 25. Rxc5 {[%clk 0:00:14]}  Qxc5+ {[%clk 0:01:06]} 26. Qd4 {[%clk 0:00:14]}  Qc2 {[%clk 0:00:59]} 27. Qd2 {[%clk 0:00:12]}  Bd5 {[%clk 0:00:57]} 28. b3 {[%clk 0:00:11]}  Qc5+ {[%clk 0:00:53]} 29. Qd4 {[%clk 0:00:10]}  Qa3 {[%clk 0:00:54]} 30. Rd2 {[%clk 0:00:09]}  Rc1 {[%clk 0:00:51]} 31. f5 {[%clk 0:00:08]}  Ne4 {[%clk 0:00:49]} 32. Rd1 {[%clk 0:00:07]}  Rxd1 {[%clk 0:00:49]} 0-1


[Site "https://www.chess.com"]

[Event "Titled Tuesday Blitz October 18 Late 2022"]
[White "Roque Sola, Jose Luis"]
[Black "Ismayil, Malak"]
[WhiteFideId "5120390"]
[BlackFideId "13412604"]
[WhiteElo "2117"]
[BlackElo "1879"]
[Result "0-1"]
[Round "05"]
[TimeControl "180+1"]
[Date "2022.10.19"]
[WhiteClock "0:01:09"]
[BlackClock "0:01:50"]

1. c4 {[%clk 0:03:00]}  e5 {[%clk 0:02:56]} 2. Nc3 {[%clk 0:03:00]}  Nf6 {[%clk 0:02:54]} 3. Nf3 {[%clk 0:03:00]}  Nc6 {[%clk 0:02:54]} 4. g3 {[%clk 0:03:00]}  d5 {[%clk 0:02:54]} 5. cxd5 {[%clk 0:03:00]}  Nxd5 {[%clk 0:02:55]} 6. Nxd5 {[%clk 0:02:58]}  Qxd5 {[%clk 0:02:54]} 7. d3 {[%clk 0:02:58]}  Bb4+ {[%clk 0:02:53]} 8. Bd2 {[%clk 0:02:58]}  Bxd2+ {[%clk 0:02:53]} 9. Qxd2 {[%clk 0:02:59]}  Bg4 {[%clk 0:02:53]} 10. Bg2 {[%clk 0:02:58]}  Nd4 {[%clk 0:02:51]} 11. O-O {[%clk 0:01:53]}  Nxf3+ {[%clk 0:02:42]} 12. exf3 {[%clk 0:01:53]}  Bxf3 {[%clk 0:02:43]} 13. Bxf3 {[%clk 0:01:46]}  Qxf3 {[%clk 0:02:44]} 14. Rae1 {[%clk 0:01:45]}  O-O-O {[%clk 0:02:24]} 15. Re3 {[%clk 0:01:44]}  Qd5 {[%clk 0:02:23]} 16. Qc3 {[%clk 0:01:30]}  f6 {[%clk 0:02:19]} 17. Rc1 {[%clk 0:01:27]}  Rd7 {[%clk 0:02:14]} 18. a4 {[%clk 0:01:23]}  Rhd8 {[%clk 0:02:12]} 19. b4 {[%clk 0:01:23]}  Qd4 {[%clk 0:02:05]} 20. Qb3 {[%clk 0:01:17]}  Qd5 {[%clk 0:01:51]} 21. b5 {[%clk 0:01:09]}  Qxb3 {[%clk 0:01:50]} 0-1


[Site "https://www.chess.com"]